[Event "USA-ch Online Qualifier 2021"]
[Site "Online"]
[Date "2020.12.13"]
[Round "2.3"]
[White "Tang, Andrew"]
[Black "Gareyev, Timur"]
[Result "1/2-1/2"]
[ECO "A50"]
[WhiteElo "2538"]
[BlackElo "2606"]
[Annotator "RC"]
[PlyCount "105"]
[EventDate "2020.12.11"]
[EventType "tourn"]
[EventCountry "NET"]
[SourceTitle "playchess.com"]
[Source "ChessBase"]
[SourceQuality "1"]
[TimeControl "5400+30"]

1. d4 {[%emt 0:00:01]} Nf6 {[%emt 0:00:05]} 2. c4 {[%emt 0:00:08]} c6 {[%emt 0:00:16]} 3. Nf3 {[%emt 0:01:52]} b5 {[%emt 0:01:46]} 4. cxb5 {[%emt 0:01:59]} cxb5 {[%emt 0:00:07]} 5. Bf4 {[%emt 0:00:01]} Nh5 {[%emt 0:08:15]} 6. Bd2 {[%emt 0:04:35]} Bb7 {[%emt 0:03:52]} 7. Qb3 {[%emt 0:29:22]} a6 {[%emt 0:04:19]} 8. a4 {[%emt 0:05:04]} e6 {[%emt 0:02:03]} 9. axb5 {[%emt 0:02:54]} Bd5 {[%emt 0:00:37]} 10. Qd3 {[%emt 0:01:43]} Nf6 {[%emt 0:02:02]} 11. Nc3 {[%emt 0:01:52]} axb5 {[%emt 0:01:26]} 12. Rxa8 {[%emt 0:00:05]} Bxa8 {[%emt 0:00:00]} 13. Qxb5 {[%emt 0:00:37]} Bd6 {[%emt 0:01:52]} 14. e3 {[%emt 0:01:26]} Bxf3 {[%emt 0:04:39]} 15. gxf3 {[%emt 0:00:04]} O-O {[%emt 0:00:11]} 16. Ne4 {[%emt 0:05:57]} Nxe4 {[%emt 0:09:54]} 17. fxe4 {[%emt 0:00:00]} Qh4 {[%emt 0:00:02]} 18. Bg2 {[%emt 0:10:29]} Nc6 {[%emt 0:01:22]} 19. e5 {[%emt 0:00:44]} Rb8 {[%emt 0:00:12]} 20. Qd3 {[%emt 0:00:27]} Be7 {[%emt 0:08:26]} 21. Bc3 {[%emt 0:01:46]} Nb4 {[%emt 0:00:37]} 22. Qe4 {[%emt 0:06:29]} Na2 {[%emt 0:00:09]} 23. Qc2 {[%emt 0:08:16]} d6 {[%emt 0:02:05]} 24. exd6 {[%emt 0:01:06]} Bxd6 {[%emt 0:00:11]} 25. h3 {[%emt 0:00:49]} g6 {[%emt 0:13:39]} 26. O-O {[%emt 0:00:54]} Nb4 {[%emt 0:07:16]} 27. Qe2 {[%emt 0:00:07]} Nd5 {[%emt 0:00:29]} 28. Ra1 {[%emt 0:00:49]} h5 {[%emt 0:00:05]} 29. Bxd5 {[%emt 0:00:58]} exd5 {[%emt 0:00:07]} 30. Qf3 {[%emt 0:00:01]} Qg5+ {[%emt 0:03:04]} 31. Kf1 {[%emt 0:01:08]} Rb5 {[%emt 0:04:39]} 32. Ra7 {[%emt 0:02:37]} Be7 {[%emt 0:03:55]} 33. Qg3 {[%emt 0:04:49]} Qxg3 {[%emt 0:05:29]} 34. fxg3 {[%emt 0:00:00]} Bd6 {[%emt 0:00:06]} 35. Kf2 {[%emt 0:00:02]} Kf8 {[%emt 0:00:31]} 36. g4 {[%emt 0:01:06]} hxg4 {[%emt 0:00:12]} 37. hxg4 {[%emt 0:00:00]} Ke8 {[%emt 0:02:29]} 38. Kf3 {[%emt 0:00:36]} Bb8 {[%emt 0:00:34]} 39. Ra5 {[%emt 0:04:41]} Rxa5 {[%emt 0:00:03]} 40. Bxa5 {[%emt 0:00:00]} Kd7 {[%emt 0:00:24]} 41. e4 {[%emt 0:00:38]} f6 {[%emt 0:04:00]} 42. b4 {[%emt 0:02:36]} Kc6 {[%emt 0:01:11]} 43. Bd8 {[%emt 0:00:16]} Bd6 {[%emt 0:05:28]} 44. Bxf6 {[%emt 0:00:06]} Bxb4 {[%emt 0:00:03]} 45. Kf4 {[%emt 0:00:04]} Bd2+ {[%emt 0:01:00]} 46. Ke5 {[%emt 0:00:03]} dxe4 {[%emt 0:00:00]} 47. Kxe4 {[%emt 0:00:50]} Kd6 {[%emt 0:00:32]} 48. d5 {[%emt 0:00:14]} Bc1 {[%emt 0:00:32]} 49. Be5+ {[%emt 0:00:31]} Kd7 {[%emt 0:00:52]} 50. Bd4 {[%emt 0:00:03]} Bh6 {[%emt 0:00:44]} 51. Be3 {[%emt 0:00:13]} Bf8 {[%emt 0:00:23]} 52. Bf4 {[%emt 0:00:05]} Ba3 {[%emt 0:00:17]} 53. Be5 {[%emt 0:00:23]} 1/2-1/2

[Event "USA-ch Online Qualifier 2021"]
[Site "Online"]
[Date "2020.12.15"]
[Round "3.4"]
[White "Yoo, Christopher Woojin"]
[Black "Naroditsky, Daniel"]
[Result "1-0"]
[ECO "B23"]
[WhiteElo "2455"]
[BlackElo "2621"]
[Annotator "RC"]
[PlyCount "129"]
[EventDate "2020.12.11"]
[EventType "tourn"]
[EventCountry "NET"]
[SourceTitle "playchess.com"]
[Source "ChessBase"]
[SourceQuality "1"]
[TimeControl "5400+30"]

1. e4 {[%emt 0:00:01]} c5 {[%emt 0:00:13]} 2. Nc3 {[%emt 0:00:02]} e6 {[%emt 0:00:29]} 3. Nge2 {[%emt 0:00:06]} Nc6 {[%emt 0:00:42]} 4. g3 {[%emt 0:00:02]} d5 {[%emt 0:02:55]} 5. exd5 {[%emt 0:00:03]} exd5 {[%emt 0:00:00]} 6. d4 {[%emt 0:00:01]} Bg4 {[%emt 0:06:25]} 7. Bg2 {[%emt 0:00:03]} Nxd4 {[%emt 0:03:31]} 8. h3 {[%emt 0:00:03]} Bf3 {[%emt 0:05:12]} 9. Kf1 {[%emt 0:00:03]} Nxe2 {[%emt 0:14:29]} 10. Bxf3 {[%emt 0:00:18]} Nxc3 {[%emt 0:00:01]} 11. bxc3 {[%emt 0:00:02]} Nf6 {[%emt 0:00:00]} 12. Rb1 {[%emt 0:06:54]} Qd7 {[%emt 0:05:54]} 13. c4 {[%emt 0:06:32]} Rd8 {[%emt 0:03:10]} 14. cxd5 {[%emt 0:03:52]} Bd6 {[%emt 0:03:37]} 15. Qe2+ {[%emt 0:05:36]} Kf8 {[%emt 0:00:02]} 16. Kg2 {[%emt 0:02:45]} b6 {[%emt 0:01:21]} 17. Qc4 {[%emt 0:04:39]} h5 {[%emt 0:04:21]} 18. a4 {[%emt 0:03:10]} Qf5 {[%emt 0:01:37]} 19. a5 {[%emt 0:04:39]} Nd7 {[%emt 0:02:40]} 20. Be4 {[%emt 0:03:44]} Qf6 {[%emt 0:00:09]} 21. h4 {[%emt 0:04:01]} Qd4 {[%emt 0:03:59]} 22. Qxd4 {[%emt 0:03:35]} cxd4 {[%emt 0:00:00]} 23. axb6 {[%emt 0:00:58]} axb6 {[%emt 0:00:09]} 24. Rd1 {[%emt 0:02:26]} Bc5 {[%emt 0:04:36]} 25. Bf4 {[%emt 0:03:29]} Re8 {[%emt 0:18:16]} 26. Re1 {[%emt 0:06:12]} g6 {[%emt 0:09:00]} 27. d6 {[%emt 0:02:52]} Ne5 {[%emt 0:01:46]} 28. Bxe5 {[%emt 0:02:47]} Rxe5 {[%emt 0:00:01]} 29. d7 {[%emt 0:00:03]} Kg7 {[%emt 0:02:43]} 30. Bc6 {[%emt 0:01:45]} Re6 {[%emt 0:02:45]} 31. Rxe6 {[%emt 0:01:10]} fxe6 {[%emt 0:00:00]} 32. Ra1 {[%emt 0:00:37]} Kf6 {[%emt 0:01:23]} 33. Ra7 {[%emt 0:01:05]} Ke5 {[%emt 0:02:14]} 34. f4+ {[%emt 0:02:30]} Kf6 {[%emt 0:00:04]} 35. Kf3 {[%emt 0:01:01]} e5 {[%emt 0:00:35]} 36. Rc7 {[%emt 0:02:01]} Rd8 {[%emt 0:00:36]} 37. Rc8 {[%emt 0:01:23]} Be7 {[%emt 0:00:03]} 38. fxe5+ {[%emt 0:02:38]} Kxe5 {[%emt 0:00:03]} 39. Bb5 {[%emt 0:00:16]} g5 {[%emt 0:01:01]} 40. hxg5 {[%emt 0:00:42]} Bxg5 {[%emt 0:00:00]} 41. Ke2 {[%emt 0:00:29]} h4 {[%emt 0:00:51]} 42. gxh4 {[%emt 0:00:22]} Bxh4 {[%emt 0:00:02]} 43. Kd3 {[%emt 0:00:39]} Be7 {[%emt 0:03:42]} 44. Rc7 {[%emt 0:01:51]} Kd5 {[%emt 0:00:32]} 45. Ba4 {[%emt 0:01:43]} Kd6 {[%emt 0:00:45]} 46. Rb7 {[%emt 0:03:39]} Kc5 {[%emt 0:00:12]} 47. Ke4 {[%emt 0:00:50]} Kb4 {[%emt 0:00:41]} 48. Bb3 {[%emt 0:00:56]} Kc5 {[%emt 0:00:38]} 49. Ke5 {[%emt 0:01:52]} Bd6+ {[%emt 0:00:21]} 50. Ke6 {[%emt 0:00:04]} b5 {[%emt 0:00:41]} 51. Bd5 {[%emt 0:01:16]} Bg3 {[%emt 0:00:15]} 52. Be4 {[%emt 0:00:39]} Bf4 {[%emt 0:00:38]} 53. Ra7 {[%emt 0:03:14]} Kb6 {[%emt 0:00:31]} 54. Ra1 {[%emt 0:00:02]} Kc7 {[%emt 0:00:36]} 55. Ra6 {[%emt 0:01:07]} Be3 {[%emt 0:00:31]} 56. Rc6+ {[%emt 0:00:15]} Kb8 {[%emt 0:00:01]} 57. Rb6+ {[%emt 0:00:38]} Ka7 {[%emt 0:00:00]} 58. Rxb5 {[%emt 0:00:04]} Bf2 {[%emt 0:00:10]} 59. Rh5 {[%emt 0:00:25]} Bg3 {[%emt 0:00:57]} 60. Ke7 {[%emt 0:01:47]} Bc7 {[%emt 0:00:23]} 61. Rc5 {[%emt 0:00:05]} Kb6 {[%emt 0:00:49]} 62. Rc6+ {[%emt 0:00:02]} Kb7 {[%emt 0:00:01]} 63. Bd5 {[%emt 0:00:04]} d3 {[%emt 0:01:23]} 64. cxd3 {[%emt 0:00:07]} Kb8 {[%emt 0:00:47]} 65. Ra6 {[%emt 0:00:05]} 1-0